fUST/lending_fUST_20260305
["ID","MTS","AMOUNT","RATE_DAILY","PERIOD"]
[407670829,1772657446696,-151.0,7.355e-05,2]
[407670830,1772657446709,-151.0,7.355e-05,2]
[407670831,1772657446723,-3025.4430278,7.369e-05,2]
[407670832,1772657446736,-415.1473564,7.555e-05,2]
[407670833,1772657446749,-731.0,7.58e-05,2]
[407670834,1772657446762,-351.0,7.59e-05,2]
[407670835,1772657446776,-242.58150042,7.59e-05,2]
[407670836,1772657446790,-786.0,7.6e-05,2]
[407670837,1772657446803,-233.32,7.808e-05,2]
[407670838,1772657446816,-233.32,7.808e-05,2]
[407670839,1772657446828,-233.32,7.808e-05,2]
[407670840,1772657446841,-233.32,7.808e-05,2]
[407670841,1772657446853,-151.0,7.808e-05,2]
[407670842,1772657446866,-151.0,7.808e-05,2]
[407670843,1772657446879,-495.65,7.99e-05,2]
[407670844,1772657446892,-233.32,8e-05,2]
[407670845,1772657446904,-233.32,8e-05,2]
[407670846,1772657446917,-233.32,8e-05,2]
[407670847,1772657446929,-233.32,8e-05,2]
[407670848,1772657446941,-11698.98521496,8e-05,2]
[407670849,1772657446954,-1000.0,8e-05,2]
[407670850,1772657446967,-1000.0,8e-05,2]
[407670851,1772657446979,-1000.0,8e-05,2]
[407670852,1772657446992,-1000.0,8e-05,2]
[407670853,1772657447004,-1000.0,8e-05,2]
[407670854,1772657447017,-1000.0,8e-05,2]
[407670855,1772657447029,-1000.0,8e-05,2]
[407670856,1772657447042,-1000.0,8e-05,2]
[407670857,1772657447055,-1000.0,8e-05,2]
[407670858,1772657447067,-1000.0,8e-05,2]
[407670859,1772657447080,-1000.0,8e-05,2]
[407670860,1772657447092,-1000.0,8e-05,2]
[407670861,1772657447103,-1000.0,8e-05,2]
[407670862,1772657447119,-1000.0,8e-05,2]
[407670863,1772657447138,-1000.0,8e-05,2]
[407670864,1772657447155,-1000.0,8e-05,2]
[407670865,1772657447172,-953.56634508,8e-05,2]
[407670866,1772657447189,-3456.562761,8.066e-05,2]
[407670867,1772657447206,-864.0,8.09e-05,2]
[407670868,1772657447219,-3025.4430278,8.183e-05,2]
[407670869,1772657447235,-537.15835824,8.192e-05,2]
[407670870,1772657447248,-460.52858954,8.192e-05,2]
[407670871,1772657447265,-155.0,8.218e-05,2]
[407670872,1772657447282,-3684.4,8.219e-05,2]
[407670873,1772657447300,-500.0,8.219e-05,2]
[407670874,1772657447317,-1837.8509337,8.219e-05,2]
[407670875,1772657447334,-500.0,8.219e-05,2]
[407670876,1772657447351,-151.0,8.219e-05,2]
[407670877,1772657447367,-151.0,8.219e-05,2]
[407670878,1772657447383,-151.0,8.219e-05,2]
[407670879,1772657447398,-151.018413,8.219e-05,2]
[407670880,1772657447408,-500.0,8.274e-05,2]
[407670881,1772657447417,-500.0,8.327e-05,2]
[407670882,1772657447427,-329.21017324,8.327e-05,2]
[407670883,1772657447436,-500.0,8.327e-05,2]
[407670884,1772657447447,-500.0,8.329e-05,2]
[407670885,1772657447459,-172.745,8.329e-05,2]
[407670886,1772657447472,-205.15813162,8.383e-05,2]
[407670887,1772657447485,-500.0,8.493e-05,2]
[407670888,1772657447497,-415.1473564,8.553e-05,2]
[407670889,1772657447510,-5331.87954121,8.6e-05,2]
[407670890,1772657447525,-4717.07435341,8.6e-05,2]
[407670891,1772657447544,-3140.07511611,8.6e-05,2]
[407670892,1772657447644,-1992.05983524,8.6e-05,2]
[407670893,1772658062982,-737.85754082,6.539e-05,2]
[407670920,1772658632446,-2138.07734123,4.95e-05,2]
[407670921,1772658632457,-173.25,5e-05,2]
[407670922,1772658632467,-416.28891327,6.219e-05,2]
[407670993,1772658646355,-236.59156685,6.219e-05,2]
[407670994,1772658646366,-509.0,6.219e-05,2]
[407670995,1772658646375,-367.00554888,6.314e-05,2]
[407670996,1772658646385,-471.98136298,6.876e-05,2]
[407670997,1772658646394,-1200.0,7.184e-05,2]
[407670998,1772658646404,-287.0,7.184e-05,2]
[407670999,1772658646415,-300.0,7.184e-05,2]
[407671000,1772658646425,-50000.0,7.185e-05,2]
[407671001,1772658646435,-164.22483031,7.186e-05,2]
[407671002,1772658646445,-500.0,7.186e-05,2]
[407671003,1772658646455,-500.0,7.186e-05,2]
[407671004,1772658646465,-183.08322203,7.186e-05,2]
[407671005,1772658646475,-500.0,7.186e-05,2]
[407671006,1772658646485,-500.0,7.186e-05,2]
[407671007,1772658646495,-500.0,7.186e-05,2]
[407671008,1772658646505,-500.0,7.186e-05,2]
[407671009,1772658646515,-500.0,7.186e-05,2]
[407671010,1772658646524,-500.0,7.186e-05,2]
[407671011,1772658646783,-451.7411833,7.186e-05,2]
[407671012,1772658646820,-500.0,7.186e-05,2]
[407671013,1772658646831,-500.0,7.186e-05,2]
[407671014,1772658646843,-500.0,7.186e-05,2]
[407671015,1772658646853,-500.0,7.186e-05,2]
[407671016,1772658646863,-500.0,7.186e-05,2]
[407671017,1772658646873,-500.0,7.186e-05,2]
[407671018,1772658646883,-500.0,7.186e-05,2]
[407671019,1772658646892,-239.11876159,7.186e-05,2]
[407671020,1772658646902,-500.0,7.186e-05,2]
[407671021,1772658646911,-500.0,7.186e-05,2]
[407671022,1772658646921,-500.0,7.186e-05,2]
[407671023,1772658646931,-500.0,7.186e-05,2]
[407671024,1772658646940,-500.0,7.186e-05,2]
[407671025,1772658646950,-500.0,7.186e-05,2]
[407671026,1772658646960,-500.0,7.186e-05,2]
[407671027,1772658646969,-500.0,7.186e-05,2]
[407671028,1772658646979,-500.0,7.186e-05,2]
[407671029,1772658646988,-500.0,7.186e-05,2]
[407671030,1772658646998,-500.0,7.186e-05,2]
[407671031,1772658647009,-500.0,7.186e-05,2]
[407671032,1772658647019,-500.0,7.186e-05,2]
[407671033,1772658647029,-500.0,7.186e-05,2]
[407671034,1772658647039,-500.0,7.186e-05,2]
[407671035,1772658647049,-500.0,7.186e-05,2]
[407671036,1772658647059,-336.3439,7.186e-05,2]
[407671037,1772658647070,-500.0,7.186e-05,2]
[407671038,1772658647080,-500.0,7.186e-05,2]
[407671039,1772658647095,-500.0,7.186e-05,2]
[407671040,1772658647105,-500.0,7.186e-05,2]
[407671041,1772658647115,-500.0,7.186e-05,2]
[407671042,1772658647125,-500.0,7.186e-05,2]
[407671043,1772658647135,-500.0,7.186e-05,2]
[407671044,1772658647144,-500.0,7.186e-05,2]
[407671045,1772658647154,-500.0,7.186e-05,2]
[407671046,1772658647164,-500.0,7.186e-05,2]
[407671047,1772658647173,-500.0,7.186e-05,2]
[407671048,1772658647182,-500.0,7.186e-05,2]
[407671049,1772658647192,-500.0,7.186e-05,2]
[407671050,1772658647202,-500.0,7.186e-05,2]
[407671051,1772658647212,-500.0,7.186e-05,2]
[407671052,1772658647222,-500.0,7.186e-05,2]
[407671053,1772658647232,-300.0,7.187e-05,2]
[407671054,1772658647242,-300.0,7.187e-05,2]
[407671055,1772658647251,-300.0,7.187e-05,2]
[407671056,1772658647261,-300.0,7.187e-05,2]
[407671057,1772658647270,-300.0,7.187e-05,2]
[407671058,1772658647279,-300.0,7.187e-05,2]
[407671059,1772658647288,-300.0,7.187e-05,2]
[407671060,1772658647297,-300.0,7.187e-05,2]
[407671061,1772658647307,-300.0,7.187e-05,2]
[407671062,1772658647316,-300.0,7.187e-05,2]
[407671063,1772658647326,-300.0,7.187e-05,2]
[407671064,1772658647335,-300.0,7.187e-05,2]
[407671065,1772658647345,-300.0,7.187e-05,2]
[407671066,1772658647354,-300.0,7.187e-05,2]
[407671067,1772658647363,-300.0,7.187e-05,2]
[407671068,1772658647372,-413.6145962,7.187e-05,2]
[407671069,1772658647382,-600.0,7.33e-05,2]
[407671070,1772658647391,-500.0,7.6e-05,2]
[407671071,1772658647400,-364.46610945,7.6e-05,2]
[407671072,1772658647409,-413.61459617,7.89e-05,2]
[407671073,1772658647419,-720.0,8.063e-05,2]
[407671074,1772658647428,-3025.4430278,8.186e-05,2]
[407671075,1772658647438,-750.9914722,8.203e-05,2]
[407671076,1772658647447,-3292.632254,8.203e-05,2]
[407671077,1772658647457,-500.0,8.219e-05,2]
[407671078,1772658647466,-433.06654768,8.314e-05,2]
[407671079,1772658647476,-172.746,8.327e-05,2]
[407671080,1772658647485,-500.0,8.493e-05,2]
[407671081,1772658647495,-413.61459617,8.594e-05,2]
[407671082,1772658647504,-2379.80753081,8.6e-05,2]
[407671083,1772658647517,-9623.66045252,8.6e-05,2]
[407671286,1772659846347,-1846.8660324,5.264e-05,2]
[407671287,1772659846357,-1860.93396758,5.317e-05,2]
[407671288,1772659846369,-400.0,5.317e-05,2]
[407671294,1772659846576,-2739.06603242,5.317e-05,2]
[407671295,1772659846586,-1200.0,5.478e-05,2]
[407671296,1772659846595,-1414.2710484,5.479e-05,2]
[407671297,1772659846605,-500.0,6.028e-05,2]
[407671298,1772659846616,-500.0,6.028e-05,2]
[407671299,1772659846625,-193.23541795,6.028e-05,2]
[407671300,1772659846635,-500.0,6.028e-05,2]
[407671301,1772659846644,-439.0823537,6.028e-05,2]
[407671302,1772659846653,-500.0,6.028e-05,2]
[407671303,1772659846663,-467.26878,6.028e-05,2]
[407671304,1772659846673,-300.0,6.028e-05,2]
[407671305,1772659846682,-870.73682005,6.029e-05,2]
[407671306,1772659846698,-21573.20387604,6.029e-05,2]
[407671307,1772659862846,-1745.69339194,5.968e-05,2]
[407671310,1772660112782,2571.07,4e-05,2]
[407671311,1772660789236,8812.94,4e-05,2]
[407671347,1772661031727,-1525.30954568,5.185e-05,2]
[407671348,1772661031741,-5000.0,5.237e-05,2]
[407671349,1772661031751,-147.82256995,5.29e-05,2]
[407671355,1772661038244,-1856.11673278,5.237e-05,2]
[407671356,1772661038256,-30.59829224,5.29e-05,2]
[407671357,1772661038301,-323.0944274,5.29e-05,2]
[407671358,1772661038310,-351.76418377,5.48e-05,2]
[407671359,1772661038320,-135.04632558,6.031e-05,2]
[407671364,1772661040291,-795.13897966,6.031e-05,2]
[407671376,1772661042825,-962.48900003,6.031e-05,2]
[407671421,1772662231892,-2142.08896324,5.621e-05,2]
[407671423,1772662231904,-467.52642622,5.621e-05,2]
[407671425,1772662231917,-2390.38461054,5.621e-05,2]
[407671427,1772662231927,-502.0,5.678e-05,2]
[407671429,1772662231936,-348.66129772,5.779e-05,2]
[407671431,1772662231946,-300.0,6.027e-05,2]
[407671433,1772662231955,-300.0,6.027e-05,2]
[407671435,1772662231965,-1200.0,6.027e-05,2]
[407671437,1772662231975,-300.0,6.027e-05,2]
[407671439,1772662231984,-193.23541795,6.028e-05,2]
[407671441,1772662231993,-500.0,6.028e-05,2]
[407671443,1772662232003,-500.0,6.028e-05,2]
[407671445,1772662232013,-500.0,6.028e-05,2]
[407671447,1772662232023,-439.0823537,6.028e-05,2]
[407671449,1772662232033,-500.0,6.028e-05,2]
[407671451,1772662232042,-467.26878,6.028e-05,2]
[407671453,1772662232051,-298.75952124,6.029e-05,2]
[407671465,1772662237937,-27507.55883853,6.029e-05,2]
[407671466,1772662237950,-638.67673134,6.029e-05,2]
[407671467,1772662237961,-138.75394028,6.031e-05,2]
[407671468,1772662237974,-161.24605972,6.031e-05,2]
[407671469,1772662237985,-300.0,6.031e-05,2]
[407671470,1772662237995,-300.0,6.031e-05,2]
[407671471,1772662238007,-300.0,6.031e-05,2]
[407671472,1772662238017,-300.0,6.031e-05,2]
[407671473,1772662238028,-300.0,6.031e-05,2]
[407671474,1772662238040,-300.0,6.031e-05,2]
[407671475,1772662238051,-300.0,6.031e-05,2]
[407671476,1772662238062,-300.0,6.031e-05,2]
[407671477,1772662238071,-160.50562555,6.031e-05,2]
[407671530,1772662245912,-139.49437445,6.031e-05,2]
[407671531,1772662245922,-300.0,6.031e-05,2]
[407671532,1772662245931,-300.0,6.031e-05,2]
[407671533,1772662245941,-300.0,6.031e-05,2]
[407671534,1772662245950,-300.0,6.031e-05,2]
[407671535,1772662245960,-300.0,6.031e-05,2]
[407671536,1772662245970,-300.0,6.055e-05,2]
[407671537,1772662246238,-207.5736782,6.626e-05,2]
[407671538,1772662246252,-5946.1206977,6.626e-05,2]
[407671539,1772662246262,-1200.0,6.63e-05,2]
[407671540,1772662246272,-330.4839347,7.461e-05,2]
[407671541,1772662374403,-7232.07440386,0.00015811,120]
[407671542,1772662374554,-300.0,0.00019,120]
[407671543,1772662374579,-2467.92559614,0.00019,120]
[407671544,1772662414643,-5000.0,0.00019,120]
[407671555,1772663431957,-5000.0,7.024e-05,2]
[407671557,1772663431967,-521.0,7.167e-05,2]
[407671559,1772663431976,-345.52354645,7.167e-05,2]
[407671561,1772663431985,-407.40562902,7.493e-05,2]
[407671563,1772663431995,-1200.0,7.999e-05,2]
[407671564,1772663432004,-6293.22399237,8e-05,2]
[407671566,1772663432013,-500.0,8.048e-05,2]
[407671568,1772663432023,-218.58542,8.168e-05,2]
[407671570,1772663432033,-496.47127164,8.169e-05,2]
[407671572,1772663432042,-500.0,8.169e-05,2]
[407671574,1772663432052,-250.0,8.169e-05,2]
[407671576,1772663432063,-168.97195614,8.169e-05,2]
[407671579,1772663432072,-198.43767712,8.169e-05,2]
[407671591,1772663432184,-301.56232288,8.169e-05,2]
[407671593,1772663432194,-250.0,8.169e-05,2]
[407671595,1772663432204,-500.0,8.169e-05,2]
[407671597,1772663432214,-250.0,8.169e-05,2]
[407671599,1772663432223,-500.0,8.169e-05,2]
[407671601,1772663432232,-250.0,8.169e-05,2]
[407671603,1772663432242,-500.0,8.169e-05,2]
[407671605,1772663432251,-250.0,8.169e-05,2]
[407671607,1772663432262,-500.0,8.169e-05,2]
[407671609,1772663432272,-250.0,8.169e-05,2]
[407671611,1772663432281,-250.0,8.169e-05,2]
[407671613,1772663432291,-500.0,8.169e-05,2]
[407671614,1772663432301,-250.0,8.169e-05,2]
[407671616,1772663432310,-250.0,8.169e-05,2]
[407671619,1772663432320,-250.0,8.169e-05,2]
[407671620,1772663432329,-1536.741458,8.169e-05,2]
[407671622,1772663432341,-380.32218432,8.169e-05,2]
[407671694,1772663438275,-40.79235768,8.169e-05,2]
[407671695,1772663438286,-250.0,8.169e-05,2]
[407671696,1772663438296,-250.0,8.169e-05,2]
[407671697,1772663438305,-162.380719,8.169e-05,2]
[407671698,1772663438315,-250.0,8.169e-05,2]
[407671699,1772663438324,-250.0,8.169e-05,2]
[407671700,1772663438334,-168.3888056,8.169e-05,2]
[407671701,1772663438344,-250.0,8.169e-05,2]
[407671702,1772663438354,-250.0,8.169e-05,2]
[407671703,1772663438365,-174.61919141,8.169e-05,2]
[407671704,1772663438375,-250.0,8.169e-05,2]
[407671705,1772663438384,-181.08010149,8.169e-05,2]
[407671706,1772663438394,-250.0,8.169e-05,2]
[407671707,1772663438404,-359.74181629,8.169e-05,2]
[407671708,1772663438414,-187.78006525,8.169e-05,2]
[407671709,1772663438424,-250.0,8.169e-05,2]
[407671710,1772663438434,-194.72792766,8.169e-05,2]
[407671711,1772663438444,-500.0,8.169e-05,2]
[407671712,1772663438455,-250.0,8.169e-05,2]
[407671713,1772663438471,-201.93286099,8.169e-05,2]
[407671714,1772663438481,-250.0,8.169e-05,2]
[407671715,1772663438491,-500.0,8.169e-05,2]
[407671716,1772663438501,-153.59226812,8.169e-05,2]
[407671717,1772663438514,-55.81210872,8.169e-05,2]
[407671718,1772663438523,-250.0,8.169e-05,2]
[407671719,1772663438533,-160.76155877,8.169e-05,2]
[407671720,1772663438544,-217.15233878,8.169e-05,2]
[407671721,1772663438557,-250.0,8.169e-05,2]
[407671722,1772663438566,-225.18697532,8.169e-05,2]
[407671723,1772663438576,-250.0,8.169e-05,2]
[407671724,1772663438585,-233.51889341,8.169e-05,2]
[407671725,1772663438596,-250.0,8.169e-05,2]
[407671726,1772663438606,-242.15909246,8.169e-05,2]
[407671727,1772663438615,-250.0,8.169e-05,2]
[407671728,1772663438625,-469.21736614,8.169e-05,2]
[407671729,1772663438635,-251.11897888,8.169e-05,2]
[407671730,1772663438647,-250.0,8.169e-05,2]
[407671731,1772663438656,-260.4103811,8.169e-05,2]
[407671732,1772663438667,-250.0,8.169e-05,2]
[407671733,1772663438677,-270.0455652,8.169e-05,2]
[407671734,1772663438687,-250.0,8.169e-05,2]
[407671735,1772663438697,-280.03725112,8.169e-05,2]
[407671736,1772663438706,-250.0,8.169e-05,2]
[407671737,1772663438716,-290.39862941,8.169e-05,2]
[407671738,1772663438728,-250.0,8.169e-05,2]
[407671739,1772663438738,-2150.738,8.169e-05,2]
[407671740,1772663438749,-301.1433787,8.169e-05,2]
[407671741,1772663438759,-250.0,8.169e-05,2]
[407671742,1772663438769,-250.0,8.169e-05,2]
[407671743,1772663438779,-250.0,8.169e-05,2]
[407671744,1772663438788,-250.0,8.169e-05,2]
[407671745,1772663438798,-250.0,8.169e-05,2]
[407671746,1772663438808,-250.0,8.169e-05,2]
[407671747,1772663438817,-250.0,8.169e-05,2]
[407671748,1772663438827,-250.0,8.169e-05,2]
[407671749,1772663438837,-253.95324619,8.169e-05,2]
[407671750,1772663438846,-500.0,8.219e-05,2]
[407671751,1772663438857,-151.0,8.219e-05,2]
[407671752,1772663438880,-41.50692983,8.224e-05,2]
[407671778,1772663446191,-5000.0,8.101e-05,2]
[407671779,1772663446202,-503.502,8.183e-05,2]
[407671780,1772663446211,-433.0,8.183e-05,2]
[407671781,1772663446221,-1988.78974217,8.224e-05,2]
[407671782,1772663446231,-1698.38094288,8.279e-05,2]
[407671783,1772663481921,-1203.23266129,8.02e-05,2]
[407671797,1772664156651,1072.5983271,0.000157,120]
[407671824,1772664632122,-5000.0,6.322e-05,2]
[407671826,1772664632137,-4075.59281743,6.386e-05,2]
[407671829,1772664632152,-679.23543468,6.386e-05,2]
[407671831,1772664632167,-245.17174789,6.386e-05,2]
[407671834,1772664632181,-511.0,6.386e-05,2]
[407671836,1772664632194,-1200.0,6.45e-05,2]
[407671839,1772664632207,-63.01785211,6.484e-05,2]
[407671841,1772664632222,-283.60026087,6.484e-05,2]
[407671843,1772664632235,-300.0,6.645e-05,2]
[407671846,1772664632248,-300.0,6.851e-05,2]
[407671848,1772664632260,-300.0,6.851e-05,2]
[407671850,1772664632273,-300.0,6.851e-05,2]
[407671853,1772664632286,-300.0,6.851e-05,2]
[407671855,1772664632299,-1414.2710484,6.852e-05,2]
[407671858,1772664632311,-4448.50301922,6.852e-05,2]
[407671860,1772664632325,-1680.0,7.095e-05,2]
[407671862,1772664632337,-420.0,7.536e-05,2]
[407671865,1772664632350,-500.0,7.6e-05,2]
[407671867,1772664632362,-500.0,7.6e-05,2]
[407671869,1772664632376,-500.0,7.6e-05,2]
[407671872,1772664632388,-500.0,7.6e-05,2]
[407671874,1772664632401,-233.82,7.6e-05,2]
[407671876,1772664632413,-500.0,7.8e-05,2]
[407671878,1772664632425,-2351.0,7.805e-05,2]
[407671881,1772664632438,-474.521,8.011e-05,2]
[407671883,1772664632451,-638.0,8.011e-05,2]
[407671885,1772664632463,-1957.856,8.098e-05,2]
[407671888,1772664632476,-963.7553538,8.098e-05,2]
[407671890,1772664632491,-1186.9826462,8.098e-05,2]
[407671892,1772664632504,-500.0,8.099e-05,2]
[407671895,1772664632516,-500.0,8.099e-05,2]
[407671897,1772664632529,-235.31961299,8.099e-05,2]
[407671899,1772664632541,-500.0,8.099e-05,2]
[407671902,1772664632553,-500.0,8.099e-05,2]
[407671904,1772664632564,-500.0,8.099e-05,2]
[407671906,1772664632577,-500.0,8.099e-05,2]
[407671908,1772664632589,-500.0,8.099e-05,2]
[407671911,1772664632601,-500.0,8.099e-05,2]
[407671913,1772664632612,-500.0,8.099e-05,2]
[407671915,1772664632624,-500.0,8.099e-05,2]
[407671917,1772664632636,-500.0,8.1e-05,2]
[407671920,1772664632649,-500.0,8.109e-05,2]
[407671922,1772664632661,-2030.296672,8.153e-05,2]
[407671924,1772664632672,-207.5736782,8.162e-05,2]
[407671926,1772664632684,-207.5736782,8.162e-05,2]
[407671929,1772664632697,-500.0,8.2e-05,2]
[407671931,1772664632709,-752.9568923,8.208e-05,2]
[407671933,1772664632722,-500.0,8.219e-05,2]
[407671936,1772664632733,-300.0,8.289e-05,2]
[407671938,1772664632745,-172.746,8.314e-05,2]
[407671940,1772664632757,-287.88095367,8.428e-05,2]
[407671942,1772664632771,-409.00937331,8.484e-05,2]
[407671945,1772664632786,-584.89768049,8.493e-05,2]
[407671947,1772664632798,-481.35568882,8.521e-05,2]
[407671949,1772664632810,-461.67526834,8.521e-05,2]
[407671952,1772664632824,-500.0,8.521e-05,2]
[407671954,1772664632835,-250.0,8.521e-05,2]
[407671956,1772664632847,-250.0,8.521e-05,2]
[407671958,1772664632860,-250.0,8.521e-05,2]
[407671961,1772664632872,-500.0,8.521e-05,2]
[407671963,1772664632884,-250.0,8.521e-05,2]
[407671965,1772664632896,-162.380719,8.521e-05,2]
[407671968,1772664632909,-392.92057468,8.521e-05,2]
[407671970,1772664632920,-250.0,8.521e-05,2]
[407671972,1772664632932,-168.3888056,8.521e-05,2]
[407671974,1772664632943,-174.61919141,8.521e-05,2]
[407671976,1772664632957,-74.80373505,8.521e-05,2]
[407671996,1772664638334,-731.0,8.011e-05,2]
[407671997,1772664638344,-289.96429479,8.521e-05,2]
[407671998,1772664638354,-557.5788265,8.521e-05,2]
[407671999,1772664638364,-181.08010149,8.521e-05,2]
[407672000,1772664638374,-187.78006525,8.521e-05,2]
[407672001,1772664638383,-194.72792766,8.521e-05,2]
[407672002,1772664638393,-201.93286099,8.521e-05,2]
[407672003,1772664638403,-209.40437684,8.521e-05,2]
[407672004,1772664638412,-217.15233878,8.521e-05,2]
[407672005,1772664638422,-225.18697532,8.521e-05,2]
[407672007,1772664638431,-233.51889341,8.521e-05,2]
[407672008,1772664638441,-242.15909246,8.521e-05,2]
[407672009,1772664638451,-257.09679066,8.521e-05,2]
[407672010,1772664638461,-250.0,8.521e-05,2]
[407672011,1772664638471,-433.33280563,8.542e-05,2]
[407672012,1772664638481,-6815.4431707,8.6e-05,2]
[407672013,1772664638491,-500.0,8.6e-05,2]
[407672014,1772664638500,-2230.315306,8.646e-05,2]
[407672015,1772664638510,-600.0,8.695e-05,2]
[407672016,1772664638524,-3874.63670472,8.7e-05,2]
[407672017,1772664638536,-5749.0237478,8.7e-05,2]
[407672018,1772664638546,-500.0,8.7e-05,2]
[407672019,1772664638555,-201.59921814,8.7e-05,2]
[407672020,1772664638565,-686.88052486,8.747e-05,2]
[407672021,1772664638575,-1000.0,9e-05,2]
[407672022,1772664638585,-188.7629127,9.011e-05,2]
[407672023,1772664638594,-201.59921812,9.025e-05,2]
[407672024,1772664638603,-2312.83697232,9.194e-05,2]
[407672025,1772664638612,-1000.0,9.2e-05,2]
[407672026,1772664638622,-201.59921812,9.35e-05,2]
[407672027,1772664638632,-500.0,9.428e-05,2]
[407672028,1772664638642,-608.36919631,9.428e-05,2]
[407672029,1772664638651,-11610.96318918,9.429e-05,2]
[407672030,1772664638661,-500.67970123,9.5e-05,2]
[407672031,1772664638670,-720.0,9.565e-05,2]
[407672032,1772664638681,-151.0,9.589e-05,2]
[407672033,1772664638690,-151.0,9.589e-05,2]
[407672034,1772664638700,-151.0,9.589e-05,2]
[407672035,1772664638709,-151.0,9.589e-05,2]
[407672036,1772664638718,-29134.31956701,9.6e-05,2]
[407672134,1772664645999,-288.07357235,8.011e-05,2]
[407672141,1772664646294,-144.92642765,8.011e-05,2]
[407672142,1772664646305,-433.0,8.011e-05,2]
[407672143,1772664646315,-4853.12125694,8.436e-05,2]
[407677709,1772665282406,-658.0664497,7.79e-05,2]
[407677710,1772665282565,-658.0664497,7.858e-05,2]
[407677711,1772665282580,-1842.81513619,7.858e-05,2]
[407677715,1772665548373,-4770.92260584,7.779e-05,2]
[407677716,1772665548403,-122.69026436,7.858e-05,2]
[407677717,1772665548542,-212.7742596,7.858e-05,2]
[407677718,1772665548553,-731.0,7.928e-05,2]
[407677719,1772665548563,-532.0,7.937e-05,2]
[407677720,1772665548574,-1200.0,8.148e-05,2]
[407677721,1772665548584,-616.3069815,8.149e-05,2]
[407677722,1772665548594,-306.38078316,8.336e-05,2]
[407677723,1772665548604,-500.0,8.513e-05,2]
[407677724,1772665548614,-401.42391849,8.521e-05,2]
[407677725,1772665548624,-271.03666309,9.133e-05,2]
[407677726,1772665548636,-28.96333691,9.133e-05,2]
[407677727,1772665548646,-300.0,9.133e-05,2]
[407677728,1772665548656,-6.50118705,9.133e-05,2]
[407677918,1772665832477,-658.06644971,7.771e-05,2]
[407677920,1772665832561,-4112.85615613,7.771e-05,2]
[407677921,1772665832571,-529.0,7.771e-05,2]
[407677922,1772665832580,-331.20903877,8.195e-05,2]
[407677923,1772665832590,-250.0,8.619e-05,2]
[407677924,1772665832600,-294.0,9.133e-05,2]
[407677925,1772665832610,-4084.64373296,9.134e-05,2]
[407677931,1772665838452,-7666.57385313,9.134e-05,2]
[407677934,1772665838519,-5654.85282252,9.134e-05,2]
[407677949,1772665840903,-1278.94874109,9.134e-05,2]
[407677950,1772665840914,-191.92063578,9.408e-05,2]
[407677951,1772665840925,-172.74666812,9.408e-05,2]
[407677952,1772665840935,-500.0,9.593e-05,2]
[407677953,1772665840944,-176.9919,9.593e-05,2]
[407677954,1772665840954,-500.0,9.593e-05,2]
[407677955,1772665840964,-2150.738,9.594e-05,2]
[407677956,1772665840974,-365.62615937,9.6e-05,2]
[407677972,1772665843497,-689.3977303,9.6e-05,2]
[407677982,1772665846450,-32539.23738353,9.6e-05,2]
[407677983,1772665846460,-2470.41702875,9.8e-05,2]
[407677984,1772665846470,-500.0,9.899e-05,2]
[407677985,1772665846479,-275.85843742,9.899e-05,2]
[407677986,1772665846489,-191.6169931,9.899e-05,2]
[407677987,1772665846498,-3431.47179255,9.9e-05,2]
[407677988,1772665846508,-19351.07984878,9.9e-05,2]
[407677989,1772665846518,-170.0,9.9e-05,2]
[407677990,1772665846528,-191.61699308,9.924e-05,2]
[407677991,1772665846537,-2793.96442729,9.946e-05,2]
[407677992,1772665846547,-191.61699308,9.95e-05,2]
[407677993,1772665846557,-800.0,9.97e-05,2]
[407677994,1772665846566,-191.61699308,9.975e-05,2]
[407677995,1772665846576,-8076.60606927,0.0001,2]
[407682253,1772666916052,311.07601632,6.499e-05,3]
[407682301,1772667032722,-500.82288191,7.743e-05,2]
[407682303,1772667032739,-530.0,7.821e-05,2]
[407682305,1772667032751,-324.584858,7.96e-05,2]
[407682308,1772667032761,-160.566908,8.175e-05,2]
[407682310,1772667032771,-689.39773029,8.2e-05,2]
[407682312,1772667032780,-300.0,9.03e-05,2]
[407682314,1772667032791,-7578.92972746,9.031e-05,2]
[407682317,1772667032815,-2055.99310984,9.031e-05,2]
[407682319,1772667032827,-782.32245542,9.031e-05,2]
[407682321,1772667032837,-404.71593679,9.031e-05,2]